bitfinex/quotes_SOLUSD_20220307
["timestamp","ask_amount","ask_price","bid_price","bid_amount"]
[1646652214289,127.548,82.689,82.652,0.00107253]
[1646652215608,121.5,82.689,82.652,0.00107253]
[1646652216209,2.83613526,82.696,82.652,0.00107253]
[1646652216411,144.7774,82.698,82.652,0.00107253]
[1646652218012,54.44983034,82.697,82.652,0.00107253]
[1646652219911,6.047,82.696,82.652,0.00107253]
[1646652220513,18.156,82.69,82.652,0.00107253]
[1646652220713,121.5,82.689,82.652,0.00107253]
[1646652220912,121.5,82.689,82.614,6.047]
[1646652221113,0.14770693,82.686,82.59,43.2924]
[1646652221312,28.9084,82.688,82.59,43.2924]
[1646652221313,121.5,82.683,82.59,43.2924]
[1646652221511,0.14893256,82.681,82.59,43.2924]
[1646652221913,6.05,82.68,82.59,43.2924]
[1646652222112,121.5,82.679,82.6,18.1627]
[1646652222312,121.5,82.679,82.601,6.05]
[1646652222512,6.05,82.678,82.601,6.05]
[1646652222713,121.5,82.676,82.602,24.6625]
[1646652222913,6.05,82.675,82.602,24.6625]
[1646652223113,6.05,82.676,82.602,24.6625]
[1646652223316,6.05,82.676,82.61,18.1595]
[1646652223914,24.4001,82.677,82.61,18.1595]
[1646652224814,6.05,82.676,82.61,18.1595]
[1646652225615,6.05,82.676,82.61,32.8395]
[1646652225818,8.88613526,82.689,82.61,32.8395]
[1646652226019,30.7322,82.697,82.61,32.8395]
[1646652226417,152.2322,82.697,82.61,32.8395]
[1646652227417,152.2322,82.697,82.61,51.1467]
[1646652229219,146.1832,82.697,82.61,51.1467]
[1646652229421,146.1832,82.697,82.611,121.5]
[1646652229620,146.1832,82.697,82.63,18.1523]
[1646652231224,146.1832,82.697,82.63,32.8323]
[1646652232925,47.71119321,82.696,82.63,32.8323]
[1646652233626,6.048,82.695,82.63,32.8323]
[1646652234224,47.71119321,82.696,82.63,32.8323]
[1646652237328,53.75919321,82.696,82.63,32.8323]
[1646652239128,47.71119321,82.696,82.63,32.8323]
[1646652239728,47.71119321,82.696,82.631,23.4998]
[1646652239928,47.71119321,82.696,82.65,18.1517]
[1646652241630,146.1832,82.697,82.65,18.1517]
[1646652245334,146.1832,82.697,82.631,23.4998]
[1646652245335,152.2302,82.697,82.631,23.4998]
[1646652245836,121.80857882,82.695,82.631,23.4998]
[1646652246032,0.30857882,82.693,82.631,23.4998]
[1646652246233,0.30857882,82.691,82.631,23.4998]
[1646652246434,121.5,82.688,82.631,23.4998]
[1646652246636,151.3137,82.687,82.631,23.4998]
[1646652246833,145.2657,82.687,82.631,23.4998]
[1646652248034,6.048,82.696,82.64,18.1544]
[1646652248236,6.048,82.71,82.64,18.1544]
[1646652248434,29.8154,82.71,82.64,18.1544]
[1646652248935,23.7674,82.71,82.64,18.1544]
[1646652249137,50.59604392,82.697,82.64,18.1544]
[1646652252241,172.09604392,82.697,82.64,18.1544]
[1646652252941,23.3655,82.696,82.64,18.1544]
[1646652260768,155.18995782,82.695,82.631,23.4998]
[1646652261069,27.64195782,82.694,82.63,18.1559]
[1646652261271,127.548,82.693,82.63,18.1559]
[1646652261470,121.5,82.689,82.63,18.1559]
[1646652262369,18.1546,82.69,82.63,18.1559]
[1646652262969,121.5,82.689,82.63,18.1559]
[1646652264372,18.1568,82.68,82.63,18.1559]
[1646652264573,47.12050772,82.679,82.63,18.1559]
[1646652265375,18.1589,82.67,82.62,18.1581]
[1646652265577,121.5,82.669,82.59,75.2095]
[1646652265775,121.5,82.669,82.602,22.7181]
[1646652266376,121.5,82.667,82.602,22.7181]
[1646652266578,46.92250415,82.659,82.61,18.1608]
[1646652267380,6.05,82.658,82.61,18.1608]
[1646652267581,46.92250415,82.659,82.61,18.1608]
[1646652267980,22.7576,82.668,82.61,18.1608]
[1646652268983,56.98452914,82.667,82.61,18.1608]
[1646652274191,56.98452914,82.667,82.62,18.1566]
[1646652274391,56.98452914,82.667,82.621,6.05]
[1646652274892,56.98452914,82.667,82.611,6.05]
[1646652275190,56.98452914,82.667,82.63,18.1561]
[1646652276792,56.98452914,82.667,82.631,6.049]
[1646652280402,56.98452914,82.667,82.63,18.1561]
[1646652280998,6.049,82.688,82.63,18.1561]
[1646652281198,6.049,82.688,82.631,23.936]
[1646652281498,6.049,82.688,82.64,18.1545]
[1646652281898,64.71287774,82.687,82.64,18.1545]
[1646652282098,6.048,82.686,82.64,18.1545]
[1646652282697,64.71287774,82.687,82.64,18.1545]
[1646652283320,22.9414,82.689,82.64,18.1545]
[1646652283520,22.9414,82.689,82.65,18.1489]
[1646652284423,61.61293776,82.688,82.65,18.1489]
[1646652284821,22.9414,82.689,82.65,18.1489]
[1646652285023,6.048,82.697,82.65,18.1489]
[1646652285323,23.2774,82.698,82.65,18.1489]
[1646652285622,23.2774,82.698,82.66,18.149]
[1646652287826,23.2774,82.698,82.65,18.1521]
[1646652288024,6.047,82.697,82.641,23.118]
[1646652288423,127.547,82.697,82.641,23.118]
[1646652289025,6.047,82.697,82.65,18.152]
[1646652289226,23.1762,82.696,82.65,18.152]
[1646652292628,121.5,82.695,82.642,6.047]
[1646652292828,6.048,82.694,82.64,18.154]
[1646652293028,0.14930708,82.693,82.614,6.048]
[1646652293228,121.5,82.689,82.614,28.8892]
[1646652293428,121.5,82.686,82.614,28.8892]
[1646652293632,6.049,82.685,82.62,18.1588]
[1646652293828,23.3174,82.684,82.62,18.1588]
[1646652294728,23.3174,82.684,82.621,6.049]
[1646652294928,23.3174,82.684,82.63,18.1537]
[1646652295228,23.3174,82.684,82.631,23.615]
[1646652296230,23.3174,82.684,82.64,18.1537]
[1646652296628,23.3174,82.684,82.631,23.615]
[1646652298335,23.3174,82.684,82.632,6.049]
[1646652299836,18.1569,82.68,82.632,6.049]
[1646652300036,23.3174,82.684,82.632,6.049]
[1646652300638,23.3174,82.684,82.64,18.1536]
[1646652301539,23.3174,82.684,82.632,6.049]
[1646652303843,18.1567,82.68,82.632,6.049]
[1646652304742,18.1567,82.68,82.631,23.615]
[1646652304943,23.3174,82.684,82.631,23.615]
[1646652305444,23.3174,82.684,82.632,6.049]
[1646652305642,23.3174,82.684,82.64,18.1535]
[1646652306043,23.3174,82.684,82.641,6.048]
[1646652306642,23.3174,82.684,82.64,18.1535]
[1646652306842,23.3174,82.684,82.631,23.615]
[1646652308249,18.1572,82.68,82.631,23.615]
[1646652308650,23.3174,82.684,82.64,18.1539]
[1646652309051,23.3174,82.684,82.641,6.048]
[1646652309550,6.048,82.697,82.641,6.048]
[1646652309751,6.048,82.697,82.642,23.2383]
[1646652309950,1.63436243,82.707,82.65,18.1507]
[1646652310150,26.52136243,82.709,82.65,18.1507]
[1646652310551,56.44430994,82.697,82.65,18.1507]
[1646652310752,6.047,82.696,82.642,23.2383]
[1646652311555,18.1545,82.69,82.642,23.2383]
[1646652311752,6.048,82.689,82.642,23.2383]
[1646652312153,23.109,82.695,82.642,23.2383]
[1646652312853,121.5,82.694,82.642,23.2383]
[1646652313052,6.048,82.693,82.642,23.2383]
[1646652313253,18.1546,82.69,82.642,23.2383]
[1646652313453,6.048,82.689,82.642,23.2383]
[1646652314054,127.548,82.689,82.642,23.2383]
[1646652314357,6.048,82.689,82.642,23.2383]
[1646652314554,127.548,82.689,82.642,23.2383]
[1646652315554,121.5,82.679,82.61,14.68]
[1646652315757,121.5,82.677,82.614,22.5075]
[1646652317083,18.1603,82.67,82.614,22.5075]
[1646652317280,18.1603,82.67,82.62,18.1581]
[1646652317482,121.5,82.677,82.62,18.1581]
[1646652318084,84.07356212,82.678,82.62,18.1581]
[1646652318283,205.57356212,82.678,82.62,18.1581]
[1646652319081,84.07356212,82.678,82.62,18.1581]
[1646652319685,205.57356212,82.678,82.62,18.1581]
[1646652319885,18.1592,82.67,82.62,18.1581]
[1646652320885,127.549,82.669,82.62,18.1581]
[1646652321086,6.049,82.669,82.62,18.1581]
[1646652321486,24.4883,82.668,82.62,18.1581]
[1646652329798,24.4883,82.668,82.621,6.05]
[1646652329995,24.4883,82.668,82.62,18.1581]
[1646652333203,24.4883,82.668,82.621,6.05]
[1646652333803,24.4883,82.668,82.63,18.156]
[1646652337606,145.9883,82.668,82.62,18.1584]
[1646652337810,145.9883,82.668,82.621,6.05]
[1646652338308,145.9883,82.668,82.62,18.1584]
[1646652338609,24.4883,82.668,82.62,18.1584]
[1646652339010,24.4883,82.668,82.621,6.05]
[1646652339208,24.4883,82.668,82.63,18.1564]
[1646652342110,6.049,82.692,82.64,18.1488]
[1646652342310,24.8406,82.692,82.641,23.4478]
[1646652342713,1.63436243,82.71,82.642,6.048]
[1646652343133,54.76795267,82.708,82.65,18.1488]
[1646652343311,6.047,82.707,82.65,18.1488]
[1646652343511,6.047,82.707,82.651,24.7666]
[1646652343711,29.4747,82.707,82.651,24.7666]
[1646652345113,29.4747,82.707,82.66,18.1499]
[1646652345615,23.4277,82.707,82.66,18.1499]
[1646652346412,23.4277,82.707,82.652,6.047]
[1646652346812,6.047,82.706,82.651,24.7666]
[1646652347313,127.547,82.706,82.651,24.7666]
[1646652347620,121.5,82.699,82.651,24.7666]
[1646652347815,6.047,82.698,82.651,24.7666]
[1646652348218,22.8837,82.697,82.651,24.7666]
[1646652348417,6.047,82.696,82.651,24.7666]
[1646652351019,22.8837,82.697,82.651,24.7666]
[1646652352119,22.8837,82.697,82.652,6.047]
[1646652355331,22.8837,82.697,82.66,18.1499]
[1646652361353,54.76795267,82.708,82.66,18.1499]
[1646652361554,54.76795267,82.708,82.652,127.547]
[1646652361555,54.76795267,82.708,82.67,18.1444]
[1646652376175,54.76795267,82.708,82.661,23.9989]
[1646652376176,0.28102337,82.707,82.661,23.9989]
[1646652376474,23.05572337,82.707,82.661,23.9989]
[1646652377274,22.7747,82.707,82.661,23.9989]
[1646652380281,22.7747,82.707,82.652,6.047]
[1646652380483,24.40906243,82.707,82.652,6.047]
[1646652380686,1.63436243,82.705,82.652,6.047]
[1646652380883,6.047,82.704,82.652,6.047]
[1646652381291,6.047,82.705,82.652,6.047]
[1646652381684,6.047,82.705,82.66,18.1498]
[1646652381884,1.63436243,82.706,82.66,18.1498]
[1646652382487,22.7747,82.707,82.66,18.1498]
[1646652385508,22.7747,82.707,82.661,6.047]
[1646652391311,22.7747,82.707,82.663,0.19081238]
[1646652391910,6.047,82.706,82.663,0.19081238]
[1646652395520,22.7747,82.707,82.663,0.19081238]
[1646652395920,0.1036015,82.706,82.663,0.19081238]
[1646652396119,22.7747,82.707,82.663,0.19081238]
[1646652399121,6.047,82.706,82.663,0.19081238]
[1646652400528,6.047,82.706,82.661,23.9132]
[1646652400928,6.047,82.706,82.651,6.047]
[1646652401228,1.63436243,82.705,82.65,18.1517]
[1646652401430,6.047,82.704,82.65,18.1517]
[1646652402429,7.68136243,82.704,82.65,18.1517]
[1646652402628,6.047,82.704,82.65,18.1517]
[1646652403029,1.63436243,82.704,82.65,18.1517]
[1646652403229,1.63436243,82.704,82.651,6.047]
[1646652405031,1.63436243,82.702,82.651,6.047]
[1646652407138,1.63436243,82.701,82.651,6.047]
[1646652407838,0.2851237,82.698,82.651,6.047]
[1646652408038,0.2851237,82.696,82.645,6.047]
[1646652408239,1.63436243,82.692,82.644,23.6759]
[1646652408439,0.36933199,82.691,82.611,6.048]
[1646652408639,0.36933199,82.689,82.612,23.5909]
[1646652408840,1.63436243,82.681,82.613,6.049]
[1646652409139,65.81065162,82.68,82.62,18.1571]
[1646652409339,22.9017,82.679,82.62,18.1571]
[1646652415761,22.9017,82.679,82.62,32.8371]
[1646652422572,121.5,82.678,82.62,32.8371]
[1646652422872,22.9017,82.679,82.62,32.8371]
[1646652423270,6.049,82.678,82.62,32.8371]
[1646652423470,127.549,82.678,82.62,32.8371]
[1646652423871,28.9507,82.679,82.62,32.8371]
[1646652424471,28.9507,82.679,82.62,18.1571]
[1646652424970,121.5,82.678,82.62,18.1571]
[1646652425174,28.9507,82.679,82.62,18.1571]
[1646652426275,28.9507,82.679,82.621,22.7874]
[1646652426476,28.9507,82.679,82.63,18.1545]
[1646652427478,22.9017,82.679,82.63,18.1545]
[1646652427975,22.9017,82.679,82.631,24.0256]
[1646652428977,121.5,82.678,82.631,24.0256]
[1646652429176,22.9017,82.679,82.631,24.0256]
[1646652433207,6.049,82.688,82.631,24.0256]
[1646652433380,1.63436243,82.689,82.64,143.22672226]
[1646652433579,23.9783,82.694,82.64,157.90672226]
[1646652433779,1.63436243,82.71,82.64,157.90672226]
[1646652434078,6.047,82.709,82.641,50.56424674]
[1646652434281,63.56352472,82.714,82.642,121.5]
[1646652434482,63.56352472,82.714,82.66,18.1426]
[1646652434679,63.56352472,82.714,82.66,32.8226]
[1646652435585,6.046,82.727,82.661,121.5]
[1646652435783,6.046,82.727,82.68,18.1418]
[1646652435983,1.63436243,82.732,82.68,32.8218]
[1646652436185,1.63436243,82.741,82.681,24.62247449]
[1646652436384,1.63436243,82.749,82.682,121.5]
[1646652436586,64.46978624,82.756,82.686,194.55]
[1646652436783,23.0993,82.785,82.701,121.5]
[1646652436784,1.63436243,82.761,82.701,121.5]
[1646652436985,1.63436243,82.771,82.701,121.5]
[1646652437184,1.63436243,82.773,82.703,121.5]
[1646652437884,70.2887196,82.772,82.71,18.1322]
[1646652438086,70.2887196,82.772,82.71,32.8122]
[1646652440387,70.2887196,82.772,82.72,18.1348]
[1646652440688,64.2457196,82.772,82.72,18.1348]
[1646652441590,23.0993,82.785,82.72,32.8148]
[1646652441788,23.0993,82.785,82.72,32.7789837]
[1646652442589,6.042,82.794,82.74,18.127]
[1646652443189,6.041,82.813,82.74,18.127]
[1646652443387,64.44460603,82.794,82.74,18.127]
[1646652443587,64.44460603,82.794,82.74,32.807]
[1646652443991,6.041,82.817,82.74,32.807]
[1646652445090,51.1873111,82.816,82.74,32.807]
[1646652445288,6.04,82.815,82.74,32.807]
[1646652445798,121.5,82.809,82.74,14.68]
[1646652445990,6.04,82.808,82.732,47.7262]
[1646652446190,121.5,82.806,82.732,47.7262]
[1646652446388,0.1070469,82.804,82.732,47.7262]
[1646652446691,6.04,82.803,82.732,47.7262]
[1646652446888,6.041,82.805,82.732,47.7262]
[1646652447087,6.041,82.805,82.74,18.131]
[1646652447988,22.8158,82.807,82.74,18.131]
[1646652448591,18.1309,82.8,82.74,18.131]
[1646652448792,22.8158,82.807,82.74,18.131]
[1646652449190,6.04,82.806,82.74,18.131]
[1646652451295,22.8158,82.807,82.74,18.131]
[1646652451917,121.5,82.806,82.74,18.131]
[1646652452096,121.5,82.799,82.74,18.131]
[1646652452494,18.1307,82.8,82.74,18.131]
[1646652452694,121.5,82.799,82.74,18.131]
[1646652453095,127.54,82.799,82.74,18.131]
[1646652453299,121.5,82.789,82.732,47.7262]
[1646652453497,121.5,82.787,82.732,47.7262]
[1646652453698,0.1288786,82.786,82.732,47.7262]
[1646652453895,127.541,82.787,82.732,47.7262]
[1646652454699,0.25105237,82.786,82.682,18.4147]
[1646652454899,0.28441863,82.784,82.683,48.7348]
[1646652455100,0.28441863,82.784,82.69,14.68]
[1646652455301,0.28441863,82.782,82.69,14.68]
[1646652455709,0.28441863,82.78,82.683,48.7348]
[1646652455902,0.28441863,82.778,82.683,48.7348]
[1646652456104,121.5,82.757,82.69,18.1416]
[1646652456308,144.743,82.757,82.69,18.1416]
[1646652457605,150.786,82.757,82.69,18.1416]
[1646652458207,121.5,82.749,82.69,18.1416]
[1646652458910,29.286,82.757,82.69,18.1416]
[1646652459308,23.243,82.757,82.69,45.06411143]
[1646652459728,6.043,82.756,82.69,18.1416]
[1646652460230,127.543,82.756,82.69,18.1416]
[1646652460429,121.5,82.749,82.69,18.1416]
[1646652460630,6.043,82.748,82.69,18.1416]
[1646652460829,6.043,82.748,82.666,24.841]
[1646652461030,121.5,82.746,82.666,24.841]
[1646652461232,0.26510147,82.744,82.666,24.841]
[1646652461434,0.26510147,82.744,82.64,14.68]
[1646652461435,121.5,82.739,82.643,6.30756975]
[1646652461731,49.61233526,82.747,82.639,26.92251143]
[1646652461732,0.31312292,82.736,82.639,26.92251143]
[1646652461930,0.31312292,82.734,82.639,26.92251143]
[1646652462129,127.546,82.735,82.639,26.92251143]
[1646652462130,121.5,82.731,82.639,26.92251143]
[1646652462331,0.31312292,82.729,82.64,18.1528]
[1646652462530,6.047,82.728,82.64,42.0846]
[1646652462931,121.5,82.727,82.64,42.0846]
[1646652463133,121.5,82.719,82.64,42.0846]
[1646652463534,6.047,82.718,82.64,42.0846]
[1646652463936,0.31312292,82.717,82.64,42.0846]
[1646652464135,0.31312292,82.715,82.64,42.0846]
[1646652464335,56.30067608,82.699,82.64,42.0846]
[1646652464535,56.30067608,82.699,82.63,14.68]
[1646652464536,0.31312292,82.697,82.63,18.1561]
[1646652464736,0.31312292,82.695,82.63,18.1561]
[1646652464938,6.048,82.694,82.63,18.1561]
[1646652465340,6.048,82.697,82.63,18.1561]
[1646652466138,121.5,82.689,82.63,18.1561]
[1646652466543,0.10525472,82.687,82.63,18.1561]
[1646652466739,6.048,82.688,82.63,18.1561]
[1646652466740,6.048,82.686,82.63,18.1561]
[1646652466939,6.049,82.688,82.63,18.1561]
[1646652467941,121.5,82.689,82.63,18.1561]
[1646652468546,121.5,82.679,82.622,24.6772]
[1646652469643,127.549,82.697,82.622,24.6772]
[1646652470046,121.5,82.679,82.622,24.6772]
[1646652470747,121.5,82.679,82.604,28.32338277]
[1646652470945,6.049,82.678,82.59,28.32338277]
[1646652471148,0.19252783,82.69,82.591,24.3432]
[1646652471348,2.83613526,82.678,82.591,24.3432]
[1646652471546,0.19252783,82.676,82.591,24.3432]
[1646652471749,121.5,82.669,82.581,23.3607]
[1646652471948,0.23530518,82.668,82.581,23.3607]
[1646652472152,0.23530518,82.666,82.581,23.3607]
[1646652472653,0.23530518,82.663,82.581,23.3607]
[1646652472849,0.23530518,82.661,82.581,23.3607]
[1646652473049,0.23530518,82.659,82.581,23.3607]
[1646652473252,6.051,82.66,82.581,23.3607]
[1646652473253,6.051,82.658,82.581,23.3607]
[1646652473453,121.5,82.647,82.581,23.3607]
[1646652473653,0.23530518,82.644,82.581,23.3607]
[1646652474253,6.051,82.643,82.581,23.3607]
[1646652475052,121.5,82.645,82.59,18.1644]
[1646652476051,54.45283743,82.648,82.59,18.1644]
[1646652476252,54.45283743,82.648,82.591,28.32338277]
[1646652476452,54.45283743,82.648,82.6,18.1523]
[1646652476857,22.7409,82.668,82.601,28.32338277]
[1646652477252,22.7409,82.668,82.61,60.5139]
[1646652477453,121.5,82.678,82.62,18.1559]
[1646652477954,56.39612334,82.677,82.62,46.47928277]
[1646652478354,56.39612334,82.677,82.62,18.1559]
[1646652478754,6.049,82.676,82.62,18.1559]
[1646652480156,56.39612334,82.677,82.62,18.1559]
[1646652481362,6.049,82.689,82.62,18.1559]
[1646652481564,23.2637,82.709,82.63,14.68]
[1646652481757,23.2637,82.709,82.65,18.1486]
[1646652482459,59.57217654,82.708,82.65,18.1486]
[1646652482657,121.5,82.707,82.64,18.1527]
[1646652482858,6.047,82.706,82.631,23.2129]
[1646652484259,121.5,82.699,82.631,23.2129]
[1646652484463,6.048,82.698,82.62,18.1573]
[1646652484660,6.048,82.698,82.612,23.1845]
[1646652484661,121.5,82.697,82.612,23.1845]
[1646652484861,6.049,82.696,82.612,23.1845]
[1646652485683,121.5,82.679,82.612,23.1845]
[1646652485861,121.5,82.677,82.591,24.5001]
[1646652486063,121.5,82.675,82.591,24.5001]
[1646652486262,0.14889287,82.674,82.591,24.5001]
[1646652486661,53.94591625,82.678,82.591,24.5001]
[1646652486662,22.7089,82.677,82.592,28.32338277]
[1646652486864,22.7089,82.677,82.6,18.1623]
[1646652487863,121.5,82.676,82.6,18.1623]
[1646652488565,22.7089,82.677,82.6,18.1623]
[1646652489164,18.1593,82.67,82.6,18.1623]
[1646652489767,6.05,82.669,82.6,18.1623]
[1646652490168,6.05,82.676,82.6,18.1623]
[1646652492169,18.1589,82.67,82.6,18.1623]
[1646652492366,6.05,82.669,82.6,18.1623]
[1646652492568,127.55,82.669,82.6,18.1623]
[1646652492967,121.5,82.669,82.6,18.1623]
[1646652493369,6.05,82.668,82.6,18.1623]
[1646652493570,121.5,82.659,82.591,24.5001]
[1646652494570,48.33528992,82.649,82.591,24.5001]
[1646652494969,48.33528992,82.649,82.6,18.1621]
[1646652497873,6.051,82.666,82.6,18.1621]
[1646652498072,6.05,82.686,82.62,18.1515]
[1646652498572,6.049,82.701,82.621,28.32338277]
[1646652498771,56.92594428,82.707,82.622,47.5527]
[1646652498971,6.048,82.706,82.63,60.498]
[1646652499174,6.048,82.706,82.63,75.178]
[1646652499573,127.548,82.706,82.64,18.1494]
[1646652501100,121.5,82.699,82.64,18.1494]
[1646652501299,6.048,82.698,82.64,18.1494]
[1646652501502,18.1524,82.7,82.64,18.1494]
[1646652502199,121.5,82.699,82.64,18.1494]
[1646652502401,18.1524,82.7,82.64,18.1494]
[1646652502601,22.5526,82.705,82.64,18.1494]
[1646652503199,121.5,82.704,82.64,18.1494]
[1646652503801,121.5,82.699,82.59,14.68]
[1646652504101,0.19972375,82.688,82.59,14.68]
[1646652504301,121.5,82.686,82.591,23.7723]
[1646652504501,0.19972375,82.684,82.591,23.7723]
[1646652504801,121.5,82.681,82.591,23.7723]
[1646652505003,121.69972375,82.679,82.591,23.7723]
[1646652505204,121.5,82.669,82.591,23.7723]
[1646652505402,121.5,82.667,82.591,23.7723]
[1646652505601,0.20515999,82.666,82.591,23.7723]
[1646652505803,6.051,82.665,82.591,23.7723]
[1646652506001,0.20515999,82.664,82.591,23.7723]
[1646652506200,0.20515999,82.662,82.591,23.7723]
[1646652506400,6.051,82.661,82.591,23.7723]
[1646652506901,50.16759271,82.649,82.591,23.7723]
[1646652507505,50.16759271,82.649,82.591,52.09568277]
[1646652507804,50.16759271,82.649,82.6,18.1626]
[1646652509201,171.66759271,82.649,82.6,18.1626]
[1646652509601,171.66759271,82.649,82.591,23.7723]
[1646652510106,50.16759271,82.649,82.591,23.7723]
[1646652510503,50.16759271,82.649,82.6,18.1625]
[1646652514705,50.16759271,82.649,82.601,6.051]
[1646652517605,171.66759271,82.649,82.591,23.7723]
[1646652518006,50.16759271,82.649,82.591,23.7723]
[1646652518608,50.16759271,82.649,82.6,18.1627]
[1646652520610,171.66759271,82.649,82.591,23.7723]
[1646652521413,171.66759271,82.649,82.592,6.051]
[1646652521612,50.16759271,82.649,82.592,6.051]
[1646652521913,50.16759271,82.649,82.6,18.1625]
[1646652522713,50.16759271,82.649,82.601,6.051]
[1646652522916,24.6712,82.658,82.601,6.051]
[1646652523115,24.6712,82.658,82.61,18.1603]
[1646652523818,58.08684963,82.663,82.61,18.1603]
[1646652524819,58.08684963,82.663,82.602,24.2459]
[1646652525921,58.08684963,82.663,82.61,18.1605]
[1646652526522,121.5,82.659,82.602,24.2459]
[1646652527223,58.08684963,82.663,82.602,24.2459]
[1646652529225,58.08684963,82.663,82.61,18.1605]
[1646652530727,121.5,82.662,82.61,18.1605]
[1646652530930,58.08684963,82.663,82.602,24.2459]
[1646652530931,121.5,82.659,82.602,24.2459]
[1646652531929,127.551,82.662,82.602,24.2459]
[1646652532129,121.5,82.649,82.602,24.2459]
[1646652533933,121.5,82.659,82.602,24.2459]
[1646652534131,6.051,82.658,82.602,24.2459]
[1646652534731,6.051,82.658,82.6,18.1628]
[1646652534931,121.5,82.649,82.59,18.1647]
[1646652537033,121.5,82.647,82.59,18.1647]
[1646652540838,24.2525,82.648,82.581,23.578]
[1646652540839,121.5,82.639,82.581,23.578]
[1646652541040,121.5,82.637,82.581,23.578]
[1646652541238,121.5,82.637,82.563,28.32338277]
[1646652541439,121.5,82.637,82.564,23.7123]
[1646652541638,121.5,82.637,82.55,51.47988277]
[1646652541639,6.053,82.636,82.55,51.47988277]
[1646652541838,0.18136771,82.634,82.55,28.32338277]
[1646652542061,0.18136771,82.629,82.55,28.32338277]
[1646652542261,121.5,82.609,82.55,18.1736]
[1646652542466,46.06215228,82.608,82.55,18.1736]
[1646652543061,23.8648,82.607,82.55,18.1736]
[1646652543463,121.5,82.606,82.55,18.1736]
[1646652545368,121.5,82.606,82.551,28.32338277]
[1646652545570,121.5,82.606,82.56,18.1704]
[1646652545767,121.5,82.606,82.544,6.054]
[1646652545966,6.055,82.605,82.543,23.7123]
[1646652546470,6.055,82.605,82.52,60.5823]
[1646652546471,0.17150459,82.604,82.532,6.055]
[1646652546667,0.17150459,82.602,82.53,18.1782]
[1646652546870,121.5,82.599,82.531,6.055]
[1646652547068,127.555,82.599,82.531,6.055]
[1646652547468,127.555,82.599,82.521,6.055]
[1646652547667,127.555,82.599,82.522,22.6804]
[1646652547868,121.5,82.598,82.523,6.056]
[1646652548069,6.056,82.597,82.523,6.056]
[1646652548275,121.5,82.589,82.54,18.1764]
[1646652549875,121.5,82.577,82.523,6.056]
[1646652550072,121.5,82.577,82.52,18.1796]
[1646652550372,121.5,82.577,82.504,28.7364]
[1646652550573,0.14423857,82.574,82.504,28.7364]
[1646652551072,121.5,82.575,82.504,28.7364]
[1646652551278,121.5,82.569,82.504,28.7364]
[1646652551672,0.13104367,82.568,82.504,28.7364]
[1646652552272,121.5,82.569,82.504,28.7364]
[1646652552472,121.5,82.575,82.504,28.7364]
[1646652553072,121.5,82.559,82.504,28.7364]
[1646652553876,121.5,82.559,82.504,6.056]
[1646652554074,121.5,82.549,82.501,6.058]
[1646652554273,54.29331765,82.548,82.491,6.058]
[1646652554474,24.5767,82.547,82.491,6.058]
[1646652554674,24.5767,82.547,82.48,14.68]
[1646652554874,24.5767,82.547,82.481,6.059]
[1646652555573,24.5767,82.547,82.5,18.1849]